bitfinex/quotes_BTCUSD_20240703
["timestamp","ask_amount","ask_price","bid_price","bid_amount"]
[1720006323213,0.81438539,60334.0,60333.0,0.3393696]
[1720006323480,0.81385824,60334.0,60333.0,0.28029872]
[1720006323672,0.81385824,60334.0,60332.0,0.28029872]
[1720006323903,0.81385824,60334.0,60333.0,0.008]
[1720006323904,0.20957378,60334.0,60333.0,0.008]
[1720006324086,0.3045581,60334.0,60333.0,0.29629872]
[1720006324308,0.36104852,60334.0,60333.0,0.016]
[1720006324487,0.36004852,60334.0,60325.0,0.19860555]
[1720006324686,2.41390232,60333.0,60325.0,0.19860555]
[1720006324882,2.29090232,60332.0,60326.0,0.19860555]
[1720006325235,2.41390232,60331.0,60326.0,0.19860555]
[1720006325510,2.10928232,60330.0,60326.0,0.19860555]
[1720006325723,0.023,60331.0,60324.0,0.19860555]
[1720006325724,1.85931632,60329.0,60324.0,0.19860555]
[1720006325923,1.98002032,60328.0,60324.0,0.19860555]
[1720006326227,1.54762832,60327.0,60325.0,0.19860555]
[1720006326360,1.39421209,60326.0,60325.0,0.19860555]
[1720006326567,1.42164545,60326.0,60325.0,0.19860555]
[1720006327030,1.42154545,60326.0,60325.0,0.19860555]
[1720006327207,1.42144545,60326.0,60324.0,0.20760555]
[1720006327407,0.09293545,60325.0,60324.0,0.48790427]
[1720006327788,0.09293545,60325.0,60324.0,0.47890427]
[1720006328460,0.09293545,60325.0,60324.0,0.19860555]
[1720006328589,0.09293545,60325.0,60322.0,0.000924]
[1720006328590,0.343942,60325.0,60322.0,0.000924]
[1720006328796,2.31285345,60324.0,60322.0,0.000924]
[1720006328991,2.45015225,60323.0,60322.0,0.000924]
[1720006329195,2.4943858,60323.0,60322.0,0.000924]
[1720006329441,2.27760455,60323.0,60322.0,0.3382936]
[1720006329695,1.37372431,60323.0,60322.0,0.28122272]
[1720006329911,0.48221931,60323.0,60322.0,0.53689915]
[1720006330377,0.48211931,60323.0,60322.0,0.53689915]
[1720006330823,0.44007401,60323.0,60322.0,0.53689915]
[1720006331082,0.3323607,60323.0,60322.0,0.54289915]
[1720006331521,0.3313607,60323.0,60322.0,0.53689915]
[1720006331778,0.1501677,60323.0,60322.0,0.53689915]
[1720006331954,0.093313,60323.0,60322.0,0.53889915]
[1720006332354,0.094313,60323.0,60322.0,0.54489915]
[1720006332769,0.094313,60323.0,60322.0,0.53889915]
[1720006332770,0.09396318,60323.0,60322.0,0.53889915]
[1720006333168,0.09496318,60323.0,60322.0,0.54889915]
[1720006333803,0.09396318,60323.0,60322.0,0.54689915]
[1720006334172,0.09496318,60323.0,60322.0,0.55689915]
[1720006334393,0.09396318,60323.0,60322.0,0.51975643]
[1720006334684,0.72349718,60323.0,60322.0,0.01085216]
[1720006334868,2.73854398,60323.0,60315.0,0.009207]
[1720006335094,2.57317998,60322.0,60315.0,0.009207]
[1720006335366,2.28988118,60321.0,60315.0,0.009207]
[1720006335574,0.53662504,60320.0,60315.0,0.009207]
[1720006335789,0.1422,60319.0,60315.0,0.009207]
[1720006336002,0.2832988,60318.0,60315.0,0.009207]
[1720006336202,2.4802168,60318.0,60315.0,0.009207]
[1720006336475,2.3959203,60317.0,60315.0,0.020207]
[1720006336613,2.31082282,60316.0,60315.0,0.020207]
[1720006337019,2.31082282,60316.0,60315.0,0.009207]
[1720006337020,2.41082282,60316.0,60315.0,0.009207]
[1720006337303,2.41082282,60316.0,60315.0,0.016207]
[1720006337511,2.41082282,60316.0,60315.0,0.009207]
[1720006337730,2.41082282,60316.0,60315.0,0.019207]
[1720006337953,2.98600718,60316.0,60315.0,0.021]
[1720006338160,2.98600718,60316.0,60315.0,0.020207]
[1720006338379,2.98600718,60316.0,60315.0,0.011]
[1720006338606,2.98700718,60316.0,60315.0,0.021]
[1720006339022,2.98767947,60316.0,60309.0,0.009196]
[1720006339232,2.70911098,60315.0,60309.0,0.009196]
[1720006339352,2.31144912,60314.0,60309.0,0.009196]
[1720006339556,2.54874792,60313.0,60309.0,0.009196]
[1720006339765,2.31144912,60312.0,60309.0,0.009196]
[1720006339968,2.38844912,60311.0,60309.0,0.009196]
[1720006340195,2.3968889,60310.0,60309.0,0.009196]
[1720006340408,2.4968889,60310.0,60309.0,0.022196]
[1720006340698,2.66053282,60310.0,60309.0,0.00761697]
[1720006341101,2.82083162,60310.0,60309.0,0.014]
[1720006341303,2.82083162,60310.0,60308.0,0.9030854]
[1720006341304,2.9135177,60310.0,60308.0,0.9030854]
[1720006341503,2.8158849,60309.0,60308.0,0.7941552]
[1720006341709,2.8388849,60309.0,60308.0,0.7941552]
[1720006341886,2.74735378,60309.0,60308.0,0.7941552]
[1720006342199,2.94551067,60309.0,60308.0,0.7941552]
[1720006342399,2.94551067,60309.0,60308.0,0.72079812]
[1720006342811,2.94551067,60309.0,60308.0,0.66779812]
[1720006343007,2.94551067,60309.0,60308.0,0.65079812]
[1720006343212,3.04690512,60309.0,60308.0,0.34917832]
[1720006343416,2.94554505,60309.0,60308.0,0.34917832]
[1720006343694,2.94654505,60309.0,60308.0,0.34917832]
[1720006344105,2.94554505,60309.0,60308.0,0.34917832]
[1720006344308,2.94954505,60309.0,60308.0,0.34917832]
[1720006344735,2.94554505,60309.0,60308.0,0.34917832]
[1720006344936,3.0479395,60309.0,60308.0,0.09769458]
[1720006345141,3.12539239,60309.0,60308.0,0.09177958]
[1720006345347,3.10569111,60309.0,60308.0,0.09177958]
[1720006345558,0.22082573,60305.0,60304.0,0.009196]
[1720006345763,2.86839162,60305.0,60304.0,0.009196]
[1720006345963,2.99846992,60305.0,60304.0,0.009196]
[1720006346594,3.16987772,60305.0,60304.0,0.009196]
[1720006346948,3.17887772,60305.0,60304.0,0.009196]
[1720006347153,3.52814078,60305.0,60304.0,0.009196]
[1720006347421,3.37770777,60305.0,60304.0,0.009196]
[1720006347624,2.84878199,60305.0,60304.0,0.009196]
[1720006347854,2.84878199,60305.0,60300.0,0.016807]
[1720006347855,2.57056589,60305.0,60300.0,0.016807]
[1720006348056,2.38726709,60304.0,60300.0,0.016807]
[1720006348259,2.196918,60303.0,60300.0,0.29191923]
[1720006348469,0.12508041,60302.0,60300.0,0.00955271]
[1720006348685,2.196918,60301.0,60300.0,0.00955271]
[1720006348884,0.89697884,60301.0,60300.0,0.20815826]
[1720006348997,0.89697884,60301.0,60300.0,0.00955271]
[1720006348998,0.99937672,60301.0,60300.0,0.00955271]
[1720006350001,1.02227672,60301.0,60300.0,0.00955271]
[1720006350444,0.92697477,60301.0,60300.0,0.00955271]
[1720006350651,0.92997477,60301.0,60300.0,0.00955271]
[1720006351238,0.93002201,60301.0,60300.0,0.00955271]
[1720006351457,0.93102201,60301.0,60300.0,0.00955271]
[1720006351655,0.84265493,60301.0,60300.0,0.00955271]
[1720006351899,1.18691328,60301.0,60300.0,0.00955271]
[1720006352286,1.23001735,60301.0,60300.0,0.00955271]
[1720006352492,1.44305055,60301.0,60300.0,0.00955271]
[1720006352710,1.544445,60301.0,60300.0,0.00955271]
[1720006352881,1.56414628,60301.0,60300.0,0.00955271]
[1720006353087,1.56314628,60301.0,60300.0,0.00955271]
[1720006353290,1.60731455,60301.0,60300.0,0.00955271]
[1720006353626,1.60421455,60301.0,60300.0,0.00955271]
[1720006353831,1.61311455,60301.0,60300.0,0.00955271]
[1720006354057,1.81301455,60301.0,60300.0,0.00955271]
[1720006354279,1.79331327,60301.0,60300.0,0.00955271]
[1720006354505,1.57635369,60301.0,60300.0,0.00955271]
[1720006354756,1.82221191,60301.0,60300.0,0.00955271]
[1720006355221,1.81421191,60301.0,60300.0,0.00955271]
[1720006355430,2.52221191,60301.0,60300.0,0.00955271]
[1720006355656,2.23142885,60301.0,60300.0,0.00955271]
[1720006355883,2.40632885,60301.0,60300.0,0.00955271]
[1720006357253,3.89458791,60301.0,60300.0,0.00955271]
[1720006357738,3.87861567,60301.0,60300.0,0.00955271]
[1720006357958,3.89161567,60301.0,60300.0,0.00955271]
[1720006358173,3.90361567,60301.0,60300.0,0.00955271]
[1720006358405,3.87861567,60301.0,60300.0,0.00955271]
[1720006358636,3.88761567,60301.0,60300.0,0.00955271]
[1720006359338,3.8434474,60301.0,60300.0,0.00955271]
[1720006359709,3.89762137,60301.0,60300.0,0.00955271]
[1720006360725,3.8928115,60301.0,60300.0,0.00955271]
[1720006361034,3.70280366,60301.0,60300.0,0.00955271]
[1720006361262,3.89281242,60301.0,60300.0,0.01047671]
[1720006361461,3.71791242,60301.0,60300.0,0.01047671]
[1720006361663,3.59047296,60301.0,60300.0,0.01047671]
[1720006361866,1.93269289,60301.0,60300.0,0.01047671]
[1720006362061,1.86701372,60301.0,60300.0,0.01047671]
[1720006362449,1.16701372,60301.0,60300.0,0.01047671]
[1720006362762,1.15801372,60301.0,60300.0,0.01047671]
[1720006362942,0.99771492,60301.0,60300.0,0.01047671]
[1720006363142,0.99771492,60301.0,60300.0,0.34784631]
[1720006363530,0.99771492,60301.0,60300.0,0.01047671]
[1720006363531,0.98671492,60301.0,60300.0,0.01047671]
[1720006363732,0.98721889,60301.0,60300.0,0.29077543]
[1720006363979,1.03525365,60301.0,60300.0,0.29077543]
[1720006364179,1.1059414,60301.0,60300.0,0.29077543]
[1720006364383,0.99621951,60301.0,60300.0,0.01047671]
[1720006364558,1.11121951,60301.0,60300.0,0.01047671]
[1720006364739,1.08821951,60301.0,60300.0,0.01047671]
[1720006364939,1.08921951,60301.0,60300.0,0.01047671]
[1720006365771,1.08855935,60301.0,60300.0,0.01047671]
[1720006365977,1.08755935,60301.0,60300.0,0.01047671]
[1720006366426,1.02572555,60301.0,60300.0,0.01047671]
[1720006366592,1.1102707,60301.0,60300.0,0.01047671]
[1720006366788,1.02539584,60301.0,60300.0,0.01047671]
[1720006367054,1.1104666,60301.0,60300.0,0.01047671]
[1720006367384,1.1094666,60301.0,60300.0,0.01057671]
[1720006367594,1.1104666,60301.0,60300.0,0.01057671]
[1720006367799,2.11414576,60301.0,60300.0,0.01057671]
[1720006368000,2.11514576,60301.0,60300.0,0.01057671]
[1720006368486,1.51075676,60301.0,60300.0,0.01057671]
[1720006369264,1.66183244,60301.0,60300.0,0.01057671]
[1720006369844,1.68483244,60301.0,60300.0,0.01057671]
[1720006370003,1.51032699,60301.0,60300.0,0.01057671]
[1720006370637,1.448686,60301.0,60300.0,0.29087543]
[1720006370845,0.911715,60301.0,60300.0,0.54655186]
[1720006373346,0.911715,60301.0,60300.0,0.54665186]
[1720006373547,0.898783,60301.0,60300.0,0.54665186]
[1720006374573,0.9886613,60301.0,60300.0,0.01067671]
[1720006374787,1.1719601,60301.0,60300.0,0.01067671]
[1720006375578,1.1699601,60301.0,60300.0,0.01067671]
[1720006375777,1.1719601,60301.0,60300.0,0.01067671]
[1720006376471,1.1709601,60301.0,60300.0,0.01067671]
[1720006377083,1.1699601,60301.0,60300.0,0.01067671]
[1720006377678,1.1709601,60301.0,60300.0,0.01067671]
[1720006377890,1.1719601,60301.0,60300.0,0.01067671]
[1720006378099,1.8719601,60301.0,60300.0,0.01067671]
[1720006378497,1.8699601,60301.0,60300.0,0.01067671]
[1720006379790,1.8699601,60301.0,60300.0,0.01061585]
[1720006380345,1.0800818,60301.0,60300.0,0.01061585]
[1720006380557,1.27322582,60301.0,60300.0,0.01061585]
[1720006381725,1.38635582,60301.0,60300.0,0.01061585]
[1720006382162,1.57055027,60301.0,60300.0,0.01061585]
[1720006382388,1.5706771,60301.0,60300.0,0.01061585]
[1720006382615,1.62964571,60301.0,60300.0,0.00529367]
[1720006383078,2.32964571,60301.0,60300.0,0.00529367]
[1720006384227,3.44293771,60301.0,60300.0,0.00529367]
[1720006384472,3.43793771,60301.0,60300.0,0.00529367]
[1720006384691,3.44193771,60301.0,60300.0,0.00529367]
[1720006384918,3.44693771,60301.0,60300.0,0.00529367]
[1720006385136,3.44293771,60301.0,60300.0,0.00529367]
[1720006385646,3.60581412,60301.0,60300.0,0.00529367]
[1720006387153,3.83070985,60301.0,60300.0,0.00529367]
[1720006387389,3.83070985,60301.0,60300.0,0.00398744]
[1720006387390,3.95370985,60301.0,60300.0,0.00398744]
[1720006387624,4.12860985,60301.0,60300.0,0.00214526]
[1720006388347,4.12460985,60301.0,60300.0,0.00214526]
[1720006388585,4.12960985,60301.0,60300.0,0.00214526]
[1720006389000,3.94900857,60301.0,60300.0,0.00214526]
[1720006389205,3.93900857,60301.0,60300.0,0.00214526]
[1720006389408,4.21678397,60301.0,60300.0,0.00214526]
[1720006389622,3.95300857,60301.0,60300.0,0.00214526]
[1720006390443,3.95870985,60301.0,60300.0,0.00214526]
[1720006390651,3.93900857,60301.0,60300.0,0.00214526]
[1720006390855,3.77864551,60301.0,60300.0,0.00214526]
[1720006391055,4.03673407,60301.0,60300.0,0.00214526]
[1720006391316,3.79264551,60301.0,60300.0,0.00214526]
[1720006391521,3.65564551,60301.0,60300.0,0.00214526]
[1720006391762,3.70248095,60301.0,60300.0,0.00214526]
[1720006391984,4.0423284,60301.0,60300.0,0.00214526]
[1720006392391,3.80392352,60301.0,60300.0,0.00214526]
[1720006392593,3.83192352,60301.0,60300.0,0.00214526]
[1720006393208,3.81222224,60301.0,60300.0,0.00214526]
[1720006393565,3.81306224,60301.0,60300.0,0.00214526]
[1720006393767,3.79906224,60301.0,60300.0,0.00214526]
[1720006394150,3.78506224,60301.0,60300.0,0.00214526]
[1720006394557,3.81876352,60301.0,60300.0,0.00214526]
[1720006394756,3.83233333,60301.0,60300.0,0.00214526]
[1720006394963,3.24133333,60301.0,60300.0,0.00214526]
[1720006395163,4.11623333,60301.0,60300.0,0.00214526]
[1720006395365,3.44423333,60301.0,60300.0,0.00214526]
[1720006395610,3.44423333,60301.0,60299.0,0.00681196]
[1720006395611,0.59572573,60300.0,60299.0,0.00681196]
[1720006395810,3.14687579,60300.0,60299.0,0.00681196]
[1720006396055,3.41226077,60300.0,60299.0,0.00681196]
[1720006396236,3.51541547,60300.0,60299.0,0.00681196]
[1720006396857,3.66677831,60300.0,60299.0,0.00681196]
[1720006397234,3.66677831,60300.0,60299.0,0.00304195]
[1720006397434,3.40139333,60300.0,60299.0,0.00304195]
[1720006397782,3.41519333,60300.0,60299.0,0.00304195]
[1720006397982,3.68057831,60300.0,60299.0,0.00304195]
[1720006398241,3.69447831,60300.0,60299.0,0.00304195]
[1720006398448,4.39447831,60300.0,60299.0,0.00304195]
[1720006400881,4.12909333,60300.0,60299.0,0.00304195]
[1720006401089,2.22401833,60300.0,60299.0,0.00304195]
[1720006401219,4.13147189,60300.0,60299.0,0.00304195]
[1720006401623,0.59542573,60297.0,60296.0,0.009196]
[1720006401824,4.76689409,60297.0,60296.0,0.009196]
[1720006401956,5.0351259,60297.0,60296.0,0.009196]
[1720006402392,4.76689409,60297.0,60296.0,0.009196]
[1720006402594,4.87061546,60297.0,60296.0,0.009196]
[1720006402745,4.94467805,60297.0,60296.0,0.009196]
[1720006402958,5.21290986,60297.0,60296.0,0.009196]
[1720006403346,5.09647142,60297.0,60296.0,0.009196]
[1720006403566,5.09647142,60297.0,60259.0,0.2321]
[1720006403567,0.20112445,60269.0,60259.0,0.2321]
[1720006403769,0.20112445,60269.0,60268.0,0.5144062]
[1720006403770,2.00886956,60269.0,60268.0,0.5144062]
[1720006403978,2.02526956,60269.0,60268.0,0.5144062]
[1720006404186,1.545365,60269.0,60268.0,0.71301175]
[1720006404405,1.73008567,60269.0,60268.0,0.5144062]
[1720006404614,1.70708567,60269.0,60268.0,0.71301175]
[1720006404838,1.996104,60269.0,60268.0,1.05038135]
[1720006405049,2.19721244,60269.0,60268.0,0.71301175]
[1720006405258,1.52021244,60269.0,60268.0,0.5144062]
[1720006405471,1.51121244,60269.0,60268.0,0.71301175]
[1720006405679,1.51121244,60269.0,60268.0,0.5050188]
[1720006405680,1.52921244,60269.0,60268.0,0.5050188]
[1720006406113,1.68951124,60269.0,60268.0,0.5050188]
[1720006406306,1.68051124,60269.0,60268.0,0.5050188]
[1720006406511,1.8408743,60269.0,60268.0,0.5050188]
[1720006406896,1.52021244,60269.0,60268.0,0.5050188]
[1720006407100,1.52021244,60269.0,60268.0,0.50305546]
[1720006407512,1.78024124,60269.0,60268.0,0.00065546]
[1720006407736,1.78724124,60269.0,60268.0,0.00065546]
[1720006407963,2.5732743,60269.0,60268.0,0.00065546]
[1720006408175,2.24361244,60269.0,60268.0,0.48965546]
[1720006408395,2.21361244,60269.0,60268.0,0.96855973]
[1720006408598,2.22861244,60269.0,60268.0,1.02563061]
[1720006408803,2.21627444,60269.0,60268.0,1.02563061]
[1720006409007,2.4162083,60269.0,60268.0,0.00065546]
[1720006409210,1.38854644,60269.0,60268.0,0.21055546]
[1720006409647,1.41854644,60269.0,60268.0,0.21055546]
[1720006409759,1.41854644,60269.0,60268.0,0.47525546]
[1720006410363,1.57884524,60269.0,60268.0,0.47525546]
[1720006410559,1.57874524,60269.0,60268.0,0.47525546]
[1720006410824,1.72851976,60269.0,60268.0,0.47525546]
[1720006411024,1.72151976,60269.0,60268.0,0.47525546]
[1720006411231,1.73051976,60269.0,60268.0,0.47525546]
[1720006411428,1.73851976,60269.0,60268.0,0.00065546]
[1720006412013,1.73841976,60269.0,60268.0,0.00065546]
[1720006412680,1.58751493,60269.0,60268.0,0.00065546]
[1720006412890,1.42024644,60269.0,60268.0,0.48215546]
[1720006413098,0.90308644,60269.0,60268.0,1.01843061]
[1720006413304,0.7672065,60269.0,60268.0,1.01843061]
[1720006413519,0.09973,60282.0,60278.0,0.28029872]
[1720006413727,0.7,60279.0,60277.0,0.4856]
[1720006413928,0.7,60279.0,60278.0,1.02187515]
[1720006414125,0.0164,60283.0,60279.0,0.0003]
[1720006414276,1.709521,60282.0,60279.0,0.19890555]
[1720006415250,1.709521,60282.0,60281.0,0.47890427]
[1720006415251,1.665746,60282.0,60281.0,0.47890427]
[1720006415451,0.0244,60283.0,60281.0,0.47890427]
[1720006415658,1.22181,60282.0,60281.0,0.47890427]
[1720006415824,0.440361,60282.0,60281.0,1.03597515]
[1720006416066,0.117,60282.0,60281.0,1.03597515]
[1720006416273,0.117,60282.0,60281.0,0.97890427]
[1720006417298,0.009,60282.0,60281.0,0.97890427]
[1720006417472,0.032,60282.0,60281.0,0.5]
[1720006417672,0.032,60282.0,60281.0,0.69960555]
[1720006417875,1.741521,60282.0,60281.0,0.97990427]
[1720006418078,1.832521,60282.0,60281.0,0.97890427]
[1720006418255,1.99288406,60282.0,60281.0,0.5]
[1720006418484,1.99288406,60282.0,60281.0,0.001]
[1720006418485,2.15318286,60282.0,60281.0,0.001]
[1720006418701,1.9928198,60282.0,60281.0,0.001]
[1720006418985,1.9928198,60282.0,60279.0,0.28059872]
[1720006419157,1.832521,60281.0,60279.0,0.28059872]
[1720006419313,1.832521,60281.0,60279.0,0.0003]
[1720006419314,1.709421,60280.0,60279.0,0.0003]
[1720006419516,1.9361757,60280.0,60279.0,0.47920427]
[1720006419717,1.62975576,60280.0,60279.0,0.47920427]
[1720006419925,1.62975622,60280.0,60279.0,0.47920427]
[1720006420107,1.62975622,60280.0,60279.0,0.19890555]
[1720006420108,1.40591822,60280.0,60279.0,0.19890555]
[1720006420307,1.40591822,60280.0,60275.0,0.77699872]
[1720006420308,1.56621702,60280.0,60275.0,0.4967]
[1720006420551,1.56621702,60280.0,60277.0,0.0003]
[1720006420552,1.6863008,60279.0,60277.0,0.0003]
[1720006420727,1.403002,60278.0,60275.0,0.4967]
[1720006420932,0.36345462,60279.0,60275.0,0.4967]
[1720006420933,1.79005502,60277.0,60275.0,0.4967]
[1720006421135,1.403002,60276.0,60275.0,0.4967]
[1720006421337,1.526002,60276.0,60275.0,0.4967]
[1720006421565,1.526002,60276.0,60269.0,0.2215]
[1720006421566,0.60389957,60276.0,60269.0,0.2215]
[1720006421736,0.32080651,60275.0,60269.0,0.2215]
[1720006421936,1.48650971,60274.0,60269.0,0.2215]
[1720006422210,1.72380851,60273.0,60269.0,0.2215]
[1720006422439,1.48678832,60272.0,60269.0,0.2212]
[1720006422642,1.5633008,60271.0,60269.0,0.2212]
[1720006422845,1.58678832,60270.0,60269.0,0.2212]
[1720006425474,1.71516169,60270.0,60269.0,0.54397515]
[1720006425680,1.71375085,60270.0,60269.0,0.53597515]
[1720006425893,1.71375085,60270.0,60269.0,0.53697515]
[1720006426126,1.71375085,60270.0,60269.0,0.19960555]
[1720006426336,1.71375085,60270.0,60269.0,0.53697515]
[1720006426903,1.87404965,60270.0,60269.0,0.001924]
[1720006427484,1.87404965,60270.0,60269.0,0.003924]
[1720006428593,1.97377965,60270.0,60269.0,0.003924]
[1720006428800,1.8827041,60270.0,60269.0,0.003924]
[1720006429000,1.99029848,60270.0,60269.0,0.003924]
[1720006429206,2.15066154,60270.0,60269.0,0.003924]
[1720006429415,2.17107097,60270.0,60269.0,0.003924]
[1720006429617,2.27236542,60270.0,60269.0,0.003924]
[1720006429834,2.25266414,60270.0,60269.0,0.002924]
[1720006430050,2.10630108,60270.0,60269.0,0.002924]
[1720006430709,2.00546862,60270.0,60269.0,0.000924]
[1720006431147,2.01646862,60270.0,60269.0,0.001924]
[1720006431560,2.00246862,60270.0,60269.0,0.001924]
[1720006431731,2.00546862,60270.0,60269.0,0.000924]
[1720006432149,2.00728614,60270.0,60269.0,0.001924]
[1720006432359,2.1676492,60270.0,60269.0,0.001924]
[1720006432558,2.02128614,60270.0,60269.0,0.001924]
[1720006432763,2.00728614,60270.0,60269.0,0.001924]
[1720006433194,2.02128614,60270.0,60269.0,0.001924]
[1720006433617,2.02118614,60270.0,60269.0,0.001924]
[1720006433822,2.00718614,60270.0,60269.0,0.000924]
[1720006434050,2.1675492,60270.0,60269.0,0.000924]
[1720006434267,2.1814492,60270.0,60269.0,0.001924]
[1720006434473,2.18715048,60270.0,60269.0,0.001924]
[1720006434689,2.17315048,60270.0,60269.0,0.000924]
[1720006434885,2.1674492,60270.0,60269.0,0.000924]
[1720006435143,2.15529696,60270.0,60269.0,0.001924]
[1720006435358,2.19730851,60270.0,60269.0,0.001924]
[1720006435841,2.17760723,60270.0,60269.0,0.001924]
[1720006436355,2.17760723,60270.0,60259.0,4.6e-07]
[1720006436582,0.09973,60268.0,60259.0,4.6e-07]
[1720006436825,0.26612387,60267.0,60256.0,0.19860555]
[1720006437046,0.18282507,60266.0,60256.0,0.19860555]
[1720006437280,1.66912587,60265.0,60256.0,0.19860555]
[1720006437527,1.58582707,60264.0,60254.0,0.19860555]
[1720006437765,1.77361417,60263.0,60259.0,0.001]
[1720006437990,1.58582707,60262.0,60259.0,0.001]
[1720006438221,0.023,60261.0,60256.0,0.19860555]
[1720006438454,0.023,60261.0,60256.0,0.001]
[1720006438455,1.77386195,60261.0,60256.0,0.001]
[1720006438681,1.7463022,60260.0,60256.0,0.001]
[1720006438914,1.5090034,60259.0,60256.0,0.001]
[1720006439147,1.5860034,60258.0,60253.0,0.41120555]
[1720006439367,0.1060014,60257.0,60253.0,0.41120555]
[1720006439614,0.0830014,60256.0,60253.0,0.41120555]
[1720006439851,1.44840369,60255.0,60253.0,0.41120555]
[1720006440073,0.1830014,60254.0,60253.0,0.74857515]
[1720006440336,1.6090034,60254.0,60253.0,0.74857515]
[1720006440570,1.6089034,60254.0,60253.0,0.74857515]
[1720006441066,1.71246666,60254.0,60253.0,0.74857515]
[1720006441286,1.71246666,60254.0,60253.0,0.69150427]
[1720006441556,1.525902,60254.0,60253.0,0.74957515]
[1720006441778,1.71282034,60254.0,60253.0,0.74957515]
[1720006442227,1.71282034,60254.0,60253.0,0.41220555]
[1720006442475,1.71282034,60254.0,60253.0,0.74957515]
[1720006442476,1.71382034,60254.0,60253.0,0.74957515]
[1720006443196,1.71282034,60254.0,60253.0,0.74957515]
[1720006443438,1.71482034,60254.0,60253.0,0.41220555]
[1720006443688,1.71482034,60254.0,60253.0,0.41120555]
[1720006443956,1.71355655,60254.0,60253.0,0.41120555]
[1720006444182,1.71455655,60254.0,60253.0,0.2126]
[1720006444627,1.71388073,60254.0,60253.0,0.2126]
[1720006444828,1.71188073,60254.0,60253.0,0.2126]
[1720006445031,1.71288073,60254.0,60253.0,0.2126]
[1720006445268,1.71488073,60254.0,60253.0,0.2126]
[1720006446302,1.87524379,60254.0,60253.0,0.2126]
[1720006446908,1.68926506,60254.0,60253.0,0.2126]
[1720006447121,1.71394885,60254.0,60253.0,0.20700076]
[1720006447324,1.97397765,60254.0,60248.0,0.00686467]
[1720006447540,1.67464508,60253.0,60248.0,0.28716339]
[1720006447743,1.58424876,60252.0,60248.0,0.00686467]
[1720006447948,1.66754756,60251.0,60248.0,0.00686467]
[1720006448155,1.58424876,60250.0,60248.0,0.00686467]
[1720006448359,1.77134765,60249.0,60248.0,0.00686467]
[1720006448565,1.87134765,60249.0,60248.0,0.00686467]
[1720006448756,1.71104885,60249.0,60248.0,0.00686467]
[1720006449258,1.71104885,60249.0,60248.0,0.28716339]
[1720006449666,1.71094885,60249.0,60248.0,0.29116339]
[1720006450086,1.64915972,60249.0,60248.0,0.52006339]
[1720006450298,1.64915972,60249.0,60248.0,0.23976467]
[1720006450734,1.64915972,60249.0,60248.0,0.23152838]
[1720006451152,1.97082158,60249.0,60248.0,0.00193035]
[1720006451623,0.09973,60248.0,60247.0,0.00885352]
[1720006451827,1.99054179,60248.0,60247.0,0.00885352]
[1720006452046,2.17390485,60248.0,60247.0,0.00885352]
[1720006452260,2.16671828,60248.0,60247.0,0.00885352]
[1720006452482,2.86671828,60248.0,60247.0,0.00885352]
[1720006452708,2.86671828,60248.0,60247.0,0.00533471]
[1720006452976,2.96955112,60248.0,60247.0,0.00533471]
[1720006453178,3.17197811,60248.0,60247.0,0.00533471]
[1720006453395,3.17919763,60248.0,60247.0,0.00533471]
[1720006453608,3.17285198,60248.0,60247.0,0.00533471]
[1720006453815,3.27424643,60248.0,60247.0,0.00533471]
[1720006454202,3.29394771,60248.0,60247.0,0.00533471]
[1720006454397,3.27424643,60248.0,60247.0,0.00533471]
[1720006455257,3.28824643,60248.0,60247.0,0.00533471]
[1720006455680,3.28102691,60248.0,60247.0,0.00533471]
[1720006455889,3.29502691,60248.0,60247.0,0.00533471]
[1720006456103,3.29462577,60248.0,60247.0,0.00533471]
[1720006456344,3.28062577,60248.0,60247.0,0.00533471]
[1720006456562,3.17913132,60248.0,60247.0,0.00533471]
[1720006456991,2.68223872,60248.0,60247.0,0.00533471]
[1720006457198,2.53334595,60248.0,60247.0,0.00533471]
[1720006457425,2.54734595,60248.0,60247.0,0.00533471]
[1720006457630,2.62428292,60248.0,60247.0,0.00533471]
[1720006457838,2.61028292,60248.0,60247.0,0.00533471]
[1720006458254,2.46398412,60248.0,60247.0,0.00533471]
[1720006458459,2.46398412,60248.0,60247.0,0.49903471]
[1720006458663,2.44998412,60248.0,60247.0,0.83640431]
[1720006458874,2.33500112,60248.0,60247.0,1.03500986]
[1720006459081,2.35038856,60248.0,60247.0,1.03500986]
[1720006459306,2.51075162,60248.0,60247.0,0.49903471]
[1720006459518,2.33638856,60248.0,60247.0,0.49903471]
[1720006459740,2.33638856,60248.0,60247.0,0.83640431]
[1720006459741,2.34938856,60248.0,60247.0,0.83640431]
[1720006459960,1.64938856,60248.0,60247.0,0.77933343]
[1720006460184,1.66038856,60248.0,60247.0,0.49903471]
[1720006460399,1.82075162,60248.0,60247.0,0.49903471]
[1720006460624,1.84365162,60248.0,60247.0,0.83640431]
[1720006460826,1.68328856,60248.0,60247.0,0.83640431]
[1720006461032,1.68318856,60248.0,60247.0,0.49903471]
[1720006461244,1.84348736,60248.0,60247.0,0.49903471]
[1720006461484,1.68318856,60248.0,60247.0,0.83640431]
[1720006462102,1.02458739,60248.0,60247.0,1.03500986]
[1720006463063,1.01158739,60248.0,60247.0,1.03500986]
[1720006463446,1.10458739,60248.0,60247.0,1.03500986]
[1720006463647,1.11558739,60248.0,60247.0,1.03500986]
[1720006463847,1.11558739,60248.0,60247.0,1.03700986]
[1720006464082,1.10558739,60248.0,60247.0,1.03700986]
[1720006464280,1.10558739,60248.0,60247.0,0.00533471]
[1720006464281,1.21218613,60248.0,60247.0,0.00533471]
[1720006464513,1.21218613,60248.0,60247.0,0.00633471]
[1720006464514,1.23618613,60248.0,60247.0,0.00633471]
[1720006464706,1.23608613,60248.0,60247.0,0.00633471]
[1720006465156,1.16181554,60248.0,60247.0,0.00533471]
[1720006465356,1.16181554,60248.0,60247.0,0.00633471]
[1720006465357,1.12573475,60248.0,60247.0,0.00633471]
[1720006465574,1.12673475,60248.0,60247.0,0.01033471]
[1720006465747,0.35938399,60248.0,60247.0,0.29063343]
[1720006465949,0.35738399,60248.0,60247.0,0.28663343]
[1720006466148,0.35738399,60248.0,60247.0,0.34370431]
[1720006466310,0.36638399,60248.0,60247.0,0.54230986]
[1720006466562,0.35738399,60248.0,60247.0,1.05110986]
[1720006466735,1.76028599,60248.0,60247.0,1.05110986]
[1720006466943,1.76928599,60248.0,60247.0,1.05110986]
[1720006467340,1.68504999,60248.0,60247.0,1.08010986]
[1720006467549,0.62400799,60248.0,60247.0,1.08010986]
[1720006467754,0.52400799,60248.0,60247.0,1.08010986]
[1720006467958,0.51600799,60248.0,60247.0,1.05020986]
[1720006468167,0.281624,60248.0,60247.0,1.05020986]
[1720006468372,0.281624,60248.0,60247.0,1.05030986]
[1720006468373,0.52431027,60248.0,60247.0,1.05030986]
[1720006468573,0.52431027,60248.0,60247.0,1.08030986]
[1720006469001,0.50731027,60248.0,60247.0,1.08030986]